bitfinex-derivatives/quotes_ETHF0:USTF0_20260303
["timestamp","ask_amount","ask_price","bid_price","bid_amount"]
[1772512083448,0.57326019,2010.0,2009.3,0.57646828]
[1772512085145,0.57326019,2010.2,2009.3,0.57646828]
[1772512085345,0.57326019,2010.2,2009.5,0.5720807]
[1772512090048,0.57326019,2010.6,2009.7,0.5720807]
[1772512092651,0.57326019,2010.4,2009.5,0.5720807]
[1772512093149,0.57326019,2010.2,2009.5,0.5720807]
[1772512094356,0.57326019,2010.2,2009.5,0.56460126]
[1772512098550,0.57326019,2010.2,2009.4,6.517]
[1772512098755,0.57326019,2010.2,2009.4,7.12136539]
[1772512098955,0.57326019,2010.2,2009.5,0.60436539]
[1772512115872,0.57326019,2010.2,2009.4,7.12136539]
[1772512116073,0.57326019,2010.2,2009.4,0.60436539]
[1772512119276,0.61202748,2010.0,2009.4,0.60436539]
[1772512119873,0.61202748,2010.0,2009.3,0.00438758]
[1772512120077,0.61202748,2009.8,2009.3,0.00438758]
[1772512120671,0.61202748,2009.8,2009.3,0.60875297]
[1772512120976,0.61202748,2009.8,2009.3,0.00438758]
[1772512121574,0.61202748,2009.8,2009.3,0.60875297]
[1772512123170,0.61202748,2009.8,2009.3,0.00438758]
[1772512125180,0.61202748,2009.8,2009.3,0.60875297]
[1772512125381,0.61202748,2009.8,2009.0,6.517]
[1772512125382,0.61202748,2009.6,2008.9,0.60436539]
[1772512126379,0.61596732,2009.6,2008.9,0.60874881]
[1772512128182,0.58070802,2009.4,2008.9,0.00438342]
[1772512128783,0.58070802,2009.4,2008.6,0.60827137]
[1772512129883,0.58070802,2009.4,2008.6,0.61468866]
[1772512133584,0.58070802,2009.2,2008.6,0.00641729]
[1772512133785,0.58070802,2009.2,2008.3,0.60827137]
[1772512134785,0.58070802,2009.2,2008.3,0.61374241]
[1772512136583,1.44614689,2009.1,2008.3,2.0598893]
[1772512136892,0.58070802,2009.0,2008.4,0.60827137]
[1772512137079,0.58070802,2009.0,2008.6,0.60827137]
[1772512139893,0.58070802,2009.1,2008.6,0.60827137]
[1772512140690,0.58070802,2009.2,2008.7,1.44614689]
[1772512140896,0.58070802,2009.2,2008.8,0.60827137]
[1772512143504,0.58070802,2009.4,2008.7,1.44614689]
[1772512143698,0.58070802,2009.0,2008.4,0.60827137]
[1772512143899,1.44614689,2009.1,2008.4,0.60827137]
[1772512143900,0.58070802,2008.8,2008.4,0.60827137]
[1772512145397,0.58070802,2009.0,2008.4,0.60827137]
[1772512156308,0.24888,2009.3,2008.6,0.60827137]
[1772512156497,0.58070802,2009.2,2008.6,0.60827137]
[1772512164206,0.58343161,2008.8,2008.4,0.59496621]
[1772512164410,0.58343161,2008.8,2008.3,0.00547104]
[1772512164411,0.58343161,2008.6,2008.3,0.60043725]
[1772512164706,0.58343161,2008.6,2008.0,10.44332512]
[1772512164707,0.58343161,2008.6,2008.0,0.14381836]
[1772512165609,0.58343161,2008.6,2008.0,0.1497785]
[1772512168306,0.58343161,2008.8,2008.2,0.14636011]
[1772512169911,0.58343161,2008.8,2008.0,0.00596014]
[1772512169912,0.58343161,2008.8,2008.4,0.14857282]
[1772512170111,0.58343161,2009.1,2008.5,1.44614689]
[1772512170311,2.0295785,2009.1,2008.5,0.14918773]
[1772512170512,0.58343161,2009.0,2008.5,0.14918773]
[1772512171410,0.58343161,2009.0,2008.3,0.15798545]
[1772512171611,0.58343161,2008.8,2008.3,0.15798545]
[1772512173107,0.58343161,2008.8,2008.4,0.15896165]
[1772512173413,0.58343161,2009.2,2008.5,1.60510854]
[1772512173614,0.58343161,2009.1,2008.5,1.60510854]
[1772512174017,0.58343161,2009.0,2008.5,0.15896165]
[1772512174213,0.58343161,2009.0,2008.3,1.44614689]
[1772512174214,0.58343161,2009.0,2008.3,1.60565647]
[1772512177816,0.58343161,2009.0,2008.4,0.1607414]
[1772512182022,0.58343161,2008.6,2008.0,11.24550271]
[1772512182223,6.12359,2009.0,2007.6,0.65047002]
[1772512182224,1.44614689,2008.2,2007.6,0.65047002]
[1772512182423,0.24898,2008.5,2007.6,0.65047002]
[1772512182624,0.24898,2008.5,2007.8,0.65047002]
[1772512182625,0.0022269,2008.4,2007.8,0.65047002]
[1772512183021,6.52362664,2008.8,2008.0,0.64935769]
[1772512183224,0.00462664,2008.6,2008.0,0.64935769]
[1772512184237,0.00719322,2009.1,2008.4,0.64926187]
[1772512184434,0.00719322,2009.0,2008.4,0.64926187]
[1772512185532,1.44614689,2009.2,2008.6,0.65601062]
[1772512185733,1.44614689,2009.4,2008.6,0.65601062]
[1772512186730,1.44614689,2009.2,2008.4,0.65682936]
[1772512187034,1.69500689,2009.5,2008.4,0.65682936]
[1772512187035,1.44614689,2009.0,2008.4,0.65682936]
[1772512188029,1.44614689,2008.8,2008.2,0.65780217]
[1772512189130,1.44614689,2008.8,2008.2,0.65831818]
[1772512189331,7.96514689,2009.0,2008.2,0.65831818]
[1772512190234,1.44614689,2008.8,2008.2,0.65831818]
[1772512191737,7.96514689,2009.0,2008.3,0.66054615]
[1772512192937,6.519,2009.0,2008.3,0.66054615]
[1772512193136,7.96514689,2009.2,2008.3,0.66054615]
[1772512193538,7.96514689,2009.2,2008.5,0.66273777]
[1772512194237,1.44614689,2009.0,2008.5,0.66273777]
[1772512196242,7.96514689,2009.2,2008.5,0.66273777]
[1772512196447,6.519,2009.2,2008.5,0.66273777]
[1772512198240,1.4461645,2009.1,2008.3,0.65833166]
[1772512200244,1.4461645,2009.1,2008.0,6.519]
[1772512200246,1.6950745,2009.1,2008.1,0.65144529]
[1772512202844,6.519,2009.0,2008.1,0.65144529]
[1772512206155,4.15781808,2009.4,2008.1,0.65144529]
[1772512206354,6.77177984,2009.6,2008.6,0.63840883]
[1772512206649,0.25277984,2009.6,2008.6,0.63840883]
[1772512206954,6.50817195,2009.6,2008.8,0.63684813]
[1772512207155,0.00393984,2009.6,2009.0,0.63684813]
[1772512207351,0.24879,2010.1,2009.0,0.63684813]
[1772512207557,1.4461645,2009.8,2008.7,0.63684813]
[1772512208551,1.45129668,2009.8,2008.7,0.63684813]
[1772512209756,0.00513218,2009.8,2008.7,0.63684813]
[1772512209956,6.519,2009.7,2008.9,0.63873086]
[1772512211849,0.00513218,2009.8,2008.9,0.63873086]
[1772512212859,1.45129668,2009.8,2008.9,0.63873086]
[1772512213054,1.45129668,2009.8,2008.1,0.24902]
[1772512213055,1.4461645,2009.4,2008.7,0.63812064]
[1772512213259,6.519,2009.4,2008.7,0.63812064]
[1772512213853,6.52413218,2009.8,2008.8,0.63812064]
[1772512214059,6.52413218,2009.8,2009.0,0.63812064]
[1772512214558,0.00513218,2009.8,2009.0,0.63812064]
[1772512215466,1.45129668,2009.8,2009.0,0.63812064]
[1772512215657,1.45129668,2009.8,2008.7,0.63597543]
[1772512216960,1.4461645,2009.6,2008.7,0.63597543]
[1772512217261,6.519,2009.5,2008.7,0.63597543]
[1772512222670,1.4461645,2009.6,2008.7,0.63597543]
[1772512222869,6.519,2009.5,2008.7,0.63597543]
[1772512230576,1.4461645,2009.4,2008.6,0.64278414]
[1772512231372,6.519,2009.3,2008.6,0.64278414]
[1772512232676,6.519,2009.4,2008.7,0.64309985]
[1772512233672,0.25395218,2009.8,2008.7,0.64309985]
[1772512233872,6.519,2009.7,2008.7,0.64309985]
[1772512235176,0.25395218,2009.8,2008.7,0.64309985]
[1772512235575,6.7562193,2009.8,2008.7,0.64309985]
[1772512236071,8.2023838,2009.8,2008.7,0.64309985]
[1772512236271,6.50226712,2009.7,2008.7,0.64309985]
[1772512236476,6.519,2009.6,2008.7,0.64309985]
[1772512237074,1.70011668,2009.8,2008.7,0.64309985]
[1772512237275,13.02801848,2009.7,2008.7,0.64309985]
[1772512237475,6.519,2009.7,2008.7,0.64309985]
[1772512239482,0.25395218,2009.8,2008.7,0.64309985]
[1772512239781,6.519,2009.7,2008.7,0.64309985]
[1772512240377,0.00513218,2009.8,2008.7,0.64309985]
[1772512240581,0.00513218,2009.8,2008.5,0.24898]
[1772512240582,0.00513218,2009.8,2009.2,0.64456416]
[1772512241079,0.00513218,2009.8,2009.3,1.4461645]
[1772512241383,6.519,2010.2,2009.4,0.64448436]
[1772512241578,0.24877,2010.3,2009.4,0.64448436]
[1772512242080,6.7577158,2010.3,2009.4,0.64448436]
[1772512242281,6.7633277,2010.3,2009.4,0.64882475]
[1772512242472,6.5145577,2010.3,2009.4,0.64882475]
[1772512242678,6.5145577,2010.3,2009.6,0.64448436]
[1772512242679,0.0056119,2010.3,2009.6,0.64448436]
[1772512244280,4.40651808,2010.8,2009.6,0.64448436]
[1772512244483,0.2487,2010.8,2009.8,0.64323192]
[1772512244884,6.49916292,2010.9,2010.0,0.64211715]
[1772512245081,6.519,2011.0,2010.0,0.64211715]
[1772512245477,7.97131021,2011.0,2010.0,0.64211715]
[1772512247088,6.52514571,2011.0,2010.0,0.64211715]
[1772512247284,0.00614571,2011.0,2010.0,0.64211715]
[1772512247485,6.52514571,2011.0,2010.0,0.64211715]
[1772512248489,0.00614571,2011.0,2010.0,0.64211715]
[1772512248784,0.00614571,2011.0,2010.4,0.64207268]
[1772512249108,6.22612668,2011.7,2010.6,0.64207268]
[1772512249109,12.99764787,2011.4,2010.6,0.64207268]
[1772512249292,6.52,2011.6,2010.6,0.64207268]
[1772512249885,1.4461645,2011.4,2010.1,0.64207268]
[1772512250092,1.4461645,2011.4,2009.7,6.76782]
[1772512250093,1.45203741,2011.4,2010.3,0.64207268]
[1772512250593,0.00587291,2011.4,2010.3,0.64207268]
[1772512261003,0.00587291,2011.4,2010.3,7.16007268]
[1772512261304,2.0775846,2011.2,2010.4,0.64927328]
[1772512262196,2.0775846,2011.2,2010.0,6.518]
[1772512262408,6.76666,2011.1,2010.1,0.64927328]
[1772512264511,0.24869,2010.8,2009.7,0.66460536]
[1772512265003,2.0775846,2010.6,2009.7,0.66460536]
[1772512265204,6.518,2010.6,2009.7,0.66460536]
[1772512266609,8.5955846,2010.6,2009.7,0.66460536]
[1772512268611,0.24873,2010.5,2009.5,0.68168135]
[1772512272825,6.76768,2011.0,2009.5,0.68168135]
[1772512273110,6.76768,2011.0,2009.6,0.68292717]
[1772512273313,0.24868,2011.0,2009.8,0.68292717]
[1772512273707,0.00587291,2011.4,2010.0,0.68292717]
[1772512273708,6.52487291,2011.4,2010.0,0.68292717]
[1772512274010,6.44560132,2011.3,2010.0,0.68292717]
[1772512276108,2.0775846,2011.2,2010.0,0.68292717]
[1772512277807,6.52487291,2011.4,2010.0,0.68292717]
[1772512277808,2.0775846,2010.9,2010.0,0.68292717]
[1772512278013,8.5955846,2010.9,2010.0,0.68292717]
[1772512279615,0.24866,2011.1,2010.0,0.68292717]
[1772512279816,6.518,2011.0,2010.0,0.68292717]
[1772512286524,2.0775846,2010.9,2010.0,0.68292717]
[1772512287926,0.24869,2010.8,2009.6,0.68551792]
[1772512293430,2.0775846,2010.6,2009.6,0.68551792]
[1772512293729,8.5955846,2010.6,2009.6,0.68551792]
[1772512295747,2.0775846,2010.6,2009.6,0.68551792]
[1772512295936,6.518,2010.6,2009.6,0.68551792]
[1772512296935,6.519,2010.7,2009.6,0.68551792]
[1772512297939,0.24869,2010.8,2009.6,0.68551792]
[1772512298140,6.519,2010.7,2009.6,0.68551792]
[1772512303040,2.3263046,2010.6,2009.6,0.68551792]
[1772512304938,2.0775846,2010.3,2009.6,0.68551792]
[1772512305240,6.519,2010.3,2009.6,0.68551792]
[1772512305736,6.519,2010.3,2009.4,0.00434039]
[1772512305737,8.5965846,2010.3,2009.4,0.70064905]
[1772512306340,6.519,2010.3,2009.4,0.70064905]
[1772512308038,8.5965846,2010.3,2009.4,0.70064905]
[1772512308245,0.24877,2010.2,2009.4,0.70064905]
[1772512308438,1.44482709,2009.9,2009.4,0.70064905]
[1772512308735,1.4507089,2009.9,2009.4,0.70064905]
[1772512309246,1.44482709,2010.3,2009.6,0.69308591]
[1772512309542,1.44482709,2010.5,2009.8,0.69308591]
[1772512310043,6.519,2010.6,2009.8,0.69308591]
[1772512310343,6.52461673,2010.6,2009.8,0.69308591]
[1772512310543,0.00561673,2010.6,2009.8,0.69308591]
[1772512310844,1.44482709,2010.5,2009.8,0.69308591]
[1772512312042,0.00561673,2010.6,2010.0,0.69407066]
[1772512312849,6.76765,2011.2,2010.0,0.69407066]
[1772512313042,6.49346581,2011.1,2010.0,0.69407066]
[1772512314044,6.49737513,2011.1,2010.0,0.69407066]
[1772512316348,0.24867,2011.0,2010.0,0.69407066]
[1772512316566,6.519,2010.9,2010.0,0.69407066]
[1772512325162,6.519,2010.9,2009.8,0.68960795]
[1772512325951,0.24869,2010.8,2009.8,0.68960795]
[1772512326856,6.73965702,2010.8,2009.8,0.68960795]
[1772512328165,0.24872,2010.6,2009.5,0.69044007]
[1772512328364,6.518,2010.5,2009.5,0.69044007]
[1772512328861,6.73937543,2010.4,2009.5,0.69044007]
[1772512329063,0.24874,2010.4,2009.5,0.69044007]
[1772512333065,6.73519724,2010.4,2009.5,0.69044007]
[1772512333284,6.73519724,2010.4,2008.6,13.04748149]
[1772512333285,0.2488,2010.0,2009.1,0.69148645]
[1772512333461,6.519,2009.9,2009.1,0.69148645]
[1772512334161,0.24882,2009.8,2008.6,0.69148645]
[1772512334361,0.24882,2009.8,2008.6,0.69740214]
[1772512334562,1.44566774,2009.6,2008.6,0.69740214]
[1772512334765,1.4513124,2009.6,2008.6,0.69740214]
[1772512336461,0.00564466,2009.6,2008.6,0.69740214]
[1772512338667,0.00564466,2009.6,2008.7,0.69050626]
[1772512339669,0.00564466,2009.6,2008.6,0.00591569]
[1772512339670,6.76786,2009.5,2008.6,0.69642195]
[1772512343076,0.00564466,2009.6,2008.6,0.69642195]
[1772512343872,0.00564466,2009.6,2008.7,0.68634792]
[1772512344074,0.00564466,2009.6,2008.9,0.68634792]
[1772512346075,6.519,2010.4,2008.9,0.68634792]
[1772512346580,12.34375668,2011.0,2009.3,0.68046845]
[1772512346581,6.519,2010.7,2009.3,0.68046845]
[1772512347081,6.52490318,2010.7,2009.4,0.68079825]
[1772512348081,0.00590318,2010.7,2009.4,0.68079825]
[1772512348281,0.00590318,2010.7,2009.5,6.519]
[1772512348578,0.00590318,2010.7,2009.6,0.68079825]
[1772512359192,6.47607281,2011.2,2009.8,0.68106899]
[1772512359389,0.24861,2011.5,2009.8,0.68106899]
[1772512359885,6.72306344,2011.5,2009.8,0.68106899]
[1772512360290,6.72742034,2011.5,2009.8,0.68106899]
[1772512360492,6.72742034,2011.5,2010.0,0.68106899]
[1772512361091,12.84332034,2011.5,2010.0,0.68106899]
[1772512361310,0.24863,2011.3,2010.1,0.6799319]
[1772512361494,6.36514,2011.3,2010.1,0.6851373]
[1772512362491,0.24869,2010.9,2010.1,0.6851373]
[1772512366197,0.24869,2010.9,2010.1,0.0052054]
[1772512367596,0.24869,2010.9,2010.1,0.68016748]
[1772512368190,6.76769,2010.9,2010.1,0.68016748]
[1772512369295,0.24873,2010.5,2009.7,0.67515014]
[1772512370293,0.24873,2010.5,2009.7,0.67867476]
[1772512370695,6.519,2010.4,2009.7,0.67867476]
[1772512371597,0.24873,2010.5,2009.7,0.67867476]
[1772512372390,6.519,2010.7,2009.7,0.67867476]
[1772512373099,6.519,2010.9,2009.7,0.67867476]
[1772512374099,6.47966404,2010.8,2009.7,0.67867476]
[1772512380605,8.55922384,2010.8,2009.7,0.67867476]
[1772512380800,6.47966404,2010.7,2009.7,0.67867476]
[1772512381495,6.47966404,2010.7,2009.8,0.67439442]
[1772512381699,6.76767,2011.0,2009.8,0.67439442]
[1772512381896,6.49067199,2010.9,2009.8,0.67439442]
[1772512383002,2.3282498,2010.8,2009.8,0.67439442]
[1772512383211,13.00967199,2010.7,2009.8,0.67439442]
[1772512383410,2.0795598,2010.5,2009.8,0.67439442]
[1772512384009,2.0795598,2010.5,2009.7,0.67712964]
[1772512384908,6.519,2010.4,2009.7,0.67712964]
[1772512392717,6.49756861,2010.8,2009.7,0.67712964]
[1772512392921,13.00857879,2010.7,2009.7,0.67712964]
[1772512393113,6.48957879,2010.6,2009.7,0.67712964]
[1772512396320,6.519,2010.7,2009.7,0.67712964]
[1772512397821,0.24869,2010.8,2009.7,0.67712964]
[1772512398017,6.519,2010.7,2009.7,0.67712964]
[1772512398227,6.49345183,2010.6,2009.7,0.67712964]
[1772512398533,2.0795598,2010.5,2009.7,0.00352462]
[1772512398721,6.519,2010.4,2009.7,0.00352462]
[1772512398922,6.519,2010.4,2009.7,0.67661145]
[1772512400421,1.44462389,2010.1,2009.7,0.67661145]
[1772512403434,1.44462389,2010.1,2009.7,0.00352462]
[1772512403728,1.44462389,2010.1,2009.6,0.67351299]
[1772512404634,1.44462389,2010.1,2009.6,0.67986997]
[1772512404934,6.519,2010.4,2009.2,0.67373266]
[1772512404935,1.44462389,2009.9,2009.2,0.67373266]
[1772512406035,1.45006463,2009.9,2009.2,0.67926255]
[1772512407034,0.00544074,2009.9,2009.3,0.67473992]
[1772512409736,1.45006463,2009.9,2009.3,0.67473992]
[1772512415147,0.00544074,2009.9,2009.3,0.67473992]
[1772512415442,1.45006463,2009.9,2009.3,0.67473992]
[1772512416838,1.44462389,2009.7,2009.1,0.67533834]
[1772512417635,1.44462389,2009.5,2009.1,0.67533834]
[1772512417845,1.44462389,2009.5,2009.1,0.68145282]
[1772512420742,1.44462389,2009.7,2009.1,0.68145282]
[1772512421054,0.00544074,2009.9,2009.4,0.67750102]
[1772512421440,1.69336389,2010.5,2009.6,0.67750102]
[1772512421646,6.48955928,2010.4,2009.6,0.67750102]
[1772512422343,6.48955928,2010.4,2009.8,0.67750102]
[1772512422344,0.00396272,2010.4,2009.8,0.67750102]
[1772512431250,6.73192631,2011.0,2009.8,0.67750102]
[1772512431553,6.519,2011.3,2010.1,0.67089152]
[1772512432355,6.52335402,2011.3,2010.1,0.67089152]
[1772512432952,2.07906509,2011.1,2010.1,0.67089152]
[1772512433457,0.24867,2011.0,2010.1,0.67089152]
[1772512441055,0.00435402,2011.3,2010.1,0.67089152]
[1772512441965,0.00435402,2011.3,2010.3,0.67123753]
[1772512442164,0.00435402,2011.3,2010.5,0.67123753]
[1772512448263,6.52235402,2011.3,2010.5,0.67123753]
[1772512448561,0.24865,2011.2,2010.5,0.67123753]
[1772512448767,6.71832139,2011.2,2009.8,0.67367013]
[1772512452377,0.2487,2010.8,2009.8,0.67367013]
[1772512452670,6.518,2010.7,2009.8,0.67367013]
[1772512453670,0.2487,2010.8,2009.8,0.67367013]
[1772512456773,6.73747799,2010.8,2009.8,0.67367013]
[1772512461476,0.2487,2010.8,2009.8,0.67367013]
[1772512461676,6.73708145,2010.8,2009.8,0.67367013]
[1772512465076,10.90640026,2010.8,2009.8,0.67367013]
[1772512466972,0.24875,2010.4,2009.5,0.67399081]
[1772512467273,6.519,2010.3,2009.5,0.67399081]
[1772512468290,0.24877,2010.2,2009.5,0.67399081]
[1772512488302,6.79887637,2010.2,2009.5,0.67399081]
[1772512488502,1.69351309,2010.2,2009.5,0.67399081]
[1772512493210,6.56272503,2010.1,2009.5,0.67399081]
[1772512494908,0.59514691,2010.2,2009.5,0.67399081]
[1772512495613,0.59514691,2010.4,2009.5,0.67399081]
[1772512495814,0.59514691,2010.4,2009.5,1.44474309]
[1772512496514,0.59514691,2010.4,2009.3,1.44474309]
[1772512498117,0.59573089,2010.2,2009.1,6.52511448]
[1772512500315,0.59573089,2010.2,2009.1,7.96985757]
[1772512500512,0.59882125,2010.4,2009.5,1.44474309]
[1772512501315,0.59497063,2010.6,2009.7,1.44474309]
[1772512501710,0.59497063,2010.6,2009.7,7.96374309]
[1772512502023,0.59497063,2010.7,2009.7,7.96374309]
[1772512502519,0.59497063,2010.6,2009.8,1.44377525]
[1772512502720,0.59497063,2010.4,2009.8,1.44377525]
[1772512504414,0.59591038,2010.6,2009.8,1.44377525]
[1772512505318,0.59622893,2010.9,2010.2,1.44377525]
[1772512505721,1.44377525,2011.1,2010.0,1.44377525]
[1772512505722,0.59622893,2011.0,2010.4,1.44377525]
[1772512506522,0.59622893,2010.8,2010.2,6.519]
[1772512510424,0.59617039,2010.6,2010.2,6.519]
[1772512510925,0.59743402,2010.4,2009.7,7.96277525]
[1772512512121,0.59743402,2010.2,2009.7,6.519]
[1772512513523,0.59743402,2010.2,2009.5,1.44377525]
[1772512513740,0.24869,2010.9,2009.6,6.519]
[1772512513741,0.59554988,2010.0,2009.6,6.519]
[1772512513924,0.59554988,2010.0,2009.5,6.519]
[1772512514317,0.59554988,2009.8,2009.1,0.00611448]
[1772512514521,0.59554988,2009.8,2009.2,6.519]
[1772512514522,0.60027243,2009.8,2009.2,6.519]
[1772512514722,0.60027243,2009.8,2009.2,7.96277525]
[1772512515023,0.00472255,2009.8,2009.2,7.96277525]
[1772512516729,1.69251525,2010.5,2009.5,0.00812531]
[1772512516730,0.5949853,2010.2,2009.5,0.00812531]
[1772512517024,0.59344553,2010.3,2009.7,0.00340276]
[1772512517725,0.59923941,2010.3,2009.7,0.00340276]
[1772512518521,0.59344441,2010.1,2009.6,6.519]
[1772512518725,0.59344441,2009.9,2009.5,6.519]
[1772512521628,2.04117303,2010.0,2009.5,6.519]
[1772512521929,0.59739778,2010.1,2009.5,6.519]
[1772512524833,0.59634026,2010.1,2009.5,6.519]
[1772512525334,0.60213414,2010.3,2009.5,6.519]
[1772512526045,0.00579388,2010.3,2009.6,1.44377525]
[1772512526638,0.60213414,2010.3,2009.6,1.44377525]
[1772512526842,0.00579388,2010.3,2009.6,1.44377525]
[1772512527648,0.60234721,2010.3,2009.6,1.44377525]
[1772512529349,0.60234721,2010.3,2009.7,6.519]
[1772512529545,2.04040283,2010.2,2009.8,6.519]
[1772512531956,0.59617876,2010.1,2009.8,6.519]
[1772512533352,0.59617876,2010.1,2009.4,1.44377525]
[1772512533643,0.59617876,2010.1,2009.5,6.519]
[1772512534754,0.59617876,2010.1,2009.6,0.00319589]
[1772512537061,0.59568644,2010.3,2009.7,0.01141936]
[1772512544056,0.59568644,2010.3,2009.5,6.519]
[1772512544249,0.59568644,2010.3,2009.6,0.01727078]
[1772512545363,1.44377525,2010.0,2009.4,0.01807366]
[1772512545559,0.58656541,2009.9,2009.4,6.53707366]
[1772512547364,0.58656541,2009.9,2009.5,0.01804906]
[1772512548261,0.58658165,2010.1,2009.5,0.01804906]
[1772512549260,0.58593514,2010.2,2009.6,1.44377525]
[1772512549465,0.58593514,2010.2,2009.7,0.01899496]
[1772512555470,2.02971039,2010.2,2009.6,0.01673367]
[1772512555770,0.58706579,2010.1,2009.5,0.01673367]
[1772512559172,0.58706579,2010.1,2009.6,6.519]
[1772512560271,0.58681626,2009.9,2009.4,0.01723273]
[1772512560475,0.58681626,2009.9,2009.2,0.01723273]
[1772512560970,0.58681626,2009.9,2009.3,6.519]
[1772512562475,0.58681626,2009.9,2009.3,6.53536801]
[1772512562878,0.58681626,2009.9,2009.4,0.01636578]
[1772512563278,6.43511762,2010.2,2009.3,6.519]
[1772512563279,0.58724973,2010.1,2009.6,0.01636578]
[1772512563776,0.59304361,2010.3,2009.6,0.01636578]
[1772512563974,0.59304361,2010.3,2009.7,6.53536578]
[1772512564377,0.59304361,2010.3,2009.7,6.519]
[1772512565487,0.58703855,2009.9,2009.2,6.519]
[1772512565877,0.58703855,2009.9,2009.2,6.53578815]
[1772512566076,0.58703855,2009.9,2009.3,0.01678815]
[1772512569683,0.58703855,2009.9,2009.2,6.53168984]
[1772512572504,0.58703855,2009.9,2009.2,6.519]
[1772512576292,0.58703855,2009.9,2009.2,6.53398802]
[1772512583204,0.58703855,2009.9,2009.3,0.02286972]
[1772512586997,0.58191777,2010.2,2009.3,0.02286972]
[1772512588507,0.58191777,2010.2,2009.4,0.02708494]
[1772512588707,0.58191777,2010.2,2009.6,0.02708494]
[1772512596706,0.58191777,2010.2,2009.7,6.519]
[1772512600718,0.55327176,2010.1,2009.3,0.57664437]
[1772512601018,0.55327176,2010.1,2009.4,7.09564437]
[1772512601217,0.55327176,2010.1,2009.4,7.09664437]
[1772512605825,0.55327176,2010.1,2009.5,0.57664437]
[1772512606317,0.55327176,2010.1,2009.4,7.09664437]
[1772512606919,0.55327176,2009.8,2009.2,0.57664437]
[1772512608120,0.58692229,2010.2,2009.2,0.57664437]
[1772512612722,0.58692229,2010.0,2009.2,0.57664437]
[1772512612923,0.58692229,2009.8,2009.1,7.08783551]
[1772512613127,0.58692229,2009.8,2009.1,0.56883551]
[1772512613329,0.58692229,2009.6,2009.1,0.00611448]
[1772512613627,0.58692229,2009.4,2008.9,0.56272103]
[1772512614528,0.58692229,2009.4,2008.9,0.56915728]
[1772512618130,0.58692229,2009.4,2008.9,0.00643625]
[1772512618334,0.58692229,2009.4,2008.9,0.56915728]
[1772512620235,0.58692229,2009.8,2008.9,0.56915728]
[1772512620531,0.58692229,2010.2,2009.4,0.56272103]
[1772512620736,0.58692229,2010.2,2009.5,0.56272103]
[1772512620938,0.58692229,2010.2,2009.5,2.00698818]
[1772512621133,0.58692229,2010.2,2009.6,0.56272103]
[1772512622538,0.59271617,2010.3,2009.8,0.56272103]
[1772512623738,0.59271617,2010.3,2009.6,0.56272103]
[1772512624032,0.58692229,2010.1,2009.6,6.52]
[1772512624234,0.58692229,2009.9,2009.3,0.56272103]
[1772512625035,1.44405851,2009.8,2009.3,0.56272103]
[1772512625340,0.58692229,2009.7,2009.3,0.56272103]
[1772512625938,1.44405851,2010.0,2009.3,0.56272103]
[1772512626237,0.58692229,2009.9,2009.3,0.56272103]
[1772512635954,0.58692229,2009.9,2009.4,0.56272103]
[1772512638052,0.58692229,2009.9,2009.3,2.00421922]
[1772512638252,0.58692229,2009.9,2009.3,8.52421922]
[1772512638656,0.58692229,2009.9,2009.4,0.56404254]
[1772512642157,0.57324423,2009.8,2009.4,0.56404254]
[1772512645658,0.57324423,2009.6,2009.1,0.56404254]
[1772512645955,0.57324423,2009.6,2009.0,7.5313488]
[1772512645956,0.57324423,2009.6,2009.0,7.08404254]
[1772512646158,0.57324423,2009.5,2009.0,0.56404254]
[1772512646351,0.57324423,2009.5,2009.1,0.56404254]
[1772512647952,0.57324423,2009.7,2009.2,0.56404254]
[1772512648159,0.57324423,2009.7,2009.3,0.56404254]
[1772512649059,0.57324423,2009.9,2009.4,0.56404254]
[1772512650362,0.57324423,2009.8,2009.4,0.56404254]
[1772512651965,0.57324423,2010.1,2009.6,0.56404254]
[1772512654165,0.57324423,2010.1,2009.8,0.56404254]
[1772512655567,0.57324423,2010.1,2009.6,0.56404254]
[1772512655970,0.57324423,2010.0,2009.4,8.09539134]
[1772512656168,0.57324423,2009.8,2009.5,0.56404254]
[1772512656669,0.57324423,2009.9,2009.5,0.56404254]
[1772512659069,0.57324423,2010.0,2009.5,0.56404254]
[1772512659869,0.57324423,2009.5,2008.9,0.57047879]
[1772512660169,0.57324423,2009.0,2008.8,6.52]
[1772512660471,0.57324423,2009.0,2008.5,0.56404254]
[1772512660472,0.57324423,2008.8,2008.5,0.56404254]
[1772512660963,0.57324423,2008.8,2008.4,7.08404254]
[1772512661173,0.57680768,2008.8,2008.4,7.08937481]
[1772512661369,0.57680768,2008.8,2008.1,11.40210896]
[1772512661370,0.57324423,2008.4,2008.1,0.28065378]
[1772512661574,1.58459303,2008.4,2008.0,0.28065605]
[1772512661964,1.58459303,2008.3,2007.9,6.80065605]
[1772512662169,0.57324423,2008.2,2007.9,6.80065605]
[1772512662371,0.57324423,2008.2,2007.8,0.28065605]
[1772512662568,0.57324423,2008.2,2007.5,0.28065605]
[1772512662569,0.57324423,2008.1,2007.5,0.28065605]
[1772512662770,0.57324423,2007.9,2007.5,0.28065605]
[1772512662972,0.57324423,2007.9,2007.4,0.31286924]
[1772512663171,0.57324423,2007.9,2007.4,6.83286924]
[1772512663378,0.57324423,2007.9,2007.4,6.83771807]
[1772512664166,0.57324423,2007.9,2007.5,0.31286924]
[1772512667979,0.57324423,2007.9,2007.4,6.8414001]
[1772512668574,0.57324423,2007.9,2007.5,0.31655127]
[1772512668974,0.57324423,2007.9,2007.4,6.84463062]
[1772512669777,0.57324423,2007.9,2007.5,0.31978179]
[1772512670781,0.57324423,2007.9,2007.4,6.52484883]
[1772512671382,0.57324423,2007.9,2007.4,6.84415006]
[1772512671777,0.55897216,2008.4,2007.5,0.31930123]
[1772512672079,0.55897216,2008.4,2007.4,6.52484883]
[1772512672478,0.55897216,2008.3,2007.4,6.52484883]
[1772512673179,0.55897216,2008.3,2007.4,6.83330612]
[1772512673775,0.55897216,2008.3,2007.5,0.30845729]
[1772512676782,0.55897216,2008.3,2007.4,6.82931797]
[1772512677785,0.55897216,2008.3,2007.4,6.52484883]
[1772512677984,0.55897216,2008.3,2007.4,0.00484883]
[1772512678582,0.55897216,2008.3,2007.4,0.30931797]
[1772512686495,0.55897216,2008.3,2007.5,0.30216555]
[1772512689295,0.55897216,2008.2,2007.5,0.30216555]
[1772512691291,0.55897216,2008.1,2007.4,0.00484883]
[1772512691598,0.55897216,2008.1,2007.4,0.30897394]
[1772512693795,0.55897216,2007.9,2007.2,0.30524465]
[1772512694588,0.55897216,2007.9,2007.3,1.01302827]
[1772512694797,0.55897216,2007.9,2007.5,1.01302827]
[1772512694990,7.00953111,2008.3,2007.8,0.55791006]
[1772512695188,4.12415215,2008.5,2007.8,0.55791006]
[1772512695189,0.55897216,2008.2,2007.8,0.55791006]
[1772512695594,0.55897216,2008.2,2007.5,0.55791006]